[Event "Titled Tuesday Blitz June 13 Late 2023"]
[White "Arabidze, Meri"]
[Black "Buchenau, Frank"]
[WhiteFideId "13604040"]
[BlackFideId "4604350"]
[WhiteElo "2405"]
[BlackElo "2157"]
[Result "1-0"]
[Round "4"]
[TimeControl "180+2"]
[Date "2023.06.13"]
[WhiteClock "0:00:54"]
[BlackClock "0:00:02"]
[Board "69"]

1. d4 {[%clk 0:03:00]}  e6 {[%clk 0:02:58]} 2. c4 {[%clk 0:03:01]}  Nf6 {[%clk 0:02:58]} 3. Nf3 {[%clk 0:03:01]}  b6 {[%clk 0:02:56]} 4. g3 {[%clk 0:03:02]}  Bb7 {[%clk 0:02:56]} 5. Bg2 {[%clk 0:03:02]}  Be7 {[%clk 0:02:57]} 6. O-O {[%clk 0:03:02]}  O-O {[%clk 0:02:57]} 7. Re1 {[%clk 0:03:00]}  a5 {[%clk 0:02:54]} 8. Nc3 {[%clk 0:02:59]}  Ne4 {[%clk 0:02:54]} 9. Qc2 {[%clk 0:02:59]}  Nxc3 {[%clk 0:02:51]} 10. bxc3 {[%clk 0:03:00]}  f5 {[%clk 0:02:46]} 11. d5 {[%clk 0:02:52]}  Na6 {[%clk 0:02:39]} 12. Nd4 {[%clk 0:02:51]}  Nc5 {[%clk 0:02:38]} 13. Ba3 {[%clk 0:02:46]}  Rf6 {[%clk 0:02:19]} 14. Rad1 {[%clk 0:02:36]}  Qf8 {[%clk 0:02:12]} 15. Nb5 {[%clk 0:02:36]}  c6 {[%clk 0:02:02]} 16. d6 {[%clk 0:02:20]}  Bd8 {[%clk 0:01:54]} 17. Bxc5 {[%clk 0:02:12]}  bxc5 {[%clk 0:01:52]} 18. Qb2 {[%clk 0:01:49]}  Ba6 {[%clk 0:01:36]} 19. Nc7 {[%clk 0:01:43]}  Bxc7 {[%clk 0:01:30]} 20. dxc7 {[%clk 0:01:44]}  Qc8 {[%clk 0:01:22]} 21. Qb6 {[%clk 0:01:38]}  Bxc4 {[%clk 0:01:18]} 22. Bxc6 {[%clk 0:01:29]}  e5 {[%clk 0:01:11]} 23. Bxd7 {[%clk 0:01:22]}  Rxb6 {[%clk 0:00:14]} 24. Bxc8 {[%clk 0:01:22]}  Rxc8 {[%clk 0:00:08]} 25. Rd8+ {[%clk 0:01:21]}  Kf7 {[%clk 0:00:08]} 26. Rxc8 {[%clk 0:01:21]}  Rc6 {[%clk 0:00:08]} 27. a3 {[%clk 0:01:00]}  Be6 {[%clk 0:00:08]} 28. Ra8 {[%clk 0:01:01]}  Rxc7 {[%clk 0:00:08]} 29. Rxa5 {[%clk 0:01:01]}  Kf6 {[%clk 0:00:07]} 30. a4 {[%clk 0:00:59]}  c4 {[%clk 0:00:02]} 31. Rd1 {[%clk 0:00:54]} 1-0


[Site "https://www.chess.com"]

[Event "Titled Tuesday Blitz June 13 Late 2023"]
[White "Gil Alba, Hector Luis"]
[Black "Sun, Rick"]
[WhiteFideId "3504670"]
[BlackFideId "30909481"]
[WhiteElo "2331"]
[BlackElo "2169"]
[Result "1-0"]
[Round "4"]
[TimeControl "180+2"]
[Date "2023.06.13"]
[WhiteClock "0:01:13"]
[BlackClock "0:00:20"]
[Board "70"]

1. e4 {[%clk 0:03:00]}  d6 {[%clk 0:03:00]} 2. d4 {[%clk 0:02:59]}  Nf6 {[%clk 0:03:01]} 3. Nc3 {[%clk 0:02:59]}  Nbd7 {[%clk 0:03:01]} 4. f4 {[%clk 0:02:57]}  e5 {[%clk 0:03:02]} 5. Nf3 {[%clk 0:02:56]}  exd4 {[%clk 0:03:02]} 6. Qxd4 {[%clk 0:02:54]}  c6 {[%clk 0:03:02]} 7. e5 {[%clk 0:02:52]}  dxe5 {[%clk 0:02:59]} 8. fxe5 {[%clk 0:02:52]}  Bc5 {[%clk 0:02:59]} 9. Qh4 {[%clk 0:02:50]}  Qe7 {[%clk 0:02:29]} 10. Bf4 {[%clk 0:02:46]}  Nb6 {[%clk 0:01:30]} 11. O-O-O {[%clk 0:02:42]}  Nfd5 {[%clk 0:01:28]} 12. Bg5 {[%clk 0:02:41]}  Qe6 {[%clk 0:01:25]} 13. Ne4 {[%clk 0:02:35]}  Bb4 {[%clk 0:01:03]} 14. c4 {[%clk 0:02:22]}  Ne7 {[%clk 0:00:55]} 15. Nd6+ {[%clk 0:02:19]}  Kf8 {[%clk 0:00:47]} 16. Bd3 {[%clk 0:01:42]}  Ng6 {[%clk 0:00:30]} 17. Bxg6 {[%clk 0:01:38]}  Qxg6 {[%clk 0:00:31]} 18. Be7+ {[%clk 0:01:29]}  Kg8 {[%clk 0:00:31]} 19. Nxc8 {[%clk 0:01:28]}  Rxc8 {[%clk 0:00:30]} 20. Bxb4 {[%clk 0:01:25]}  h6 {[%clk 0:00:28]} 21. Bc3 {[%clk 0:01:21]}  Kh7 {[%clk 0:00:26]} 22. Rhe1 {[%clk 0:01:16]}  Qe6 {[%clk 0:00:20]} 23. Ng5+ {[%clk 0:01:13]} 1-0


[Site "https://www.chess.com"]

[Event "Titled Tuesday Blitz June 13 Late 2023"]
[White "Pein, Jonathan"]
[Black "Goryachkina, Aleksandra"]
[WhiteFideId "417092"]
[BlackFideId "4147103"]
[WhiteElo "2151"]
[BlackElo "2471"]
[Result "0-1"]
[Round "4"]
[TimeControl "180+2"]
[Date "2023.06.13"]
[WhiteClock "0:00:02"]
[BlackClock "0:00:06"]
[Board "71"]

1. e4 {[%clk 0:02:55]}  c6 {[%clk 0:02:59]} 2. b3 {[%clk 0:02:54]}  d5 {[%clk 0:02:59]} 3. Bb2 {[%clk 0:02:54]}  dxe4 {[%clk 0:02:52]} 4. Nc3 {[%clk 0:02:54]}  Nf6 {[%clk 0:02:52]} 5. Nge2 {[%clk 0:02:55]}  Bf5 {[%clk 0:02:48]} 6. Ng3 {[%clk 0:02:55]}  Bg6 {[%clk 0:02:48]} 7. h4 {[%clk 0:02:56]}  h6 {[%clk 0:02:47]} 8. Qe2 {[%clk 0:02:52]}  Nbd7 {[%clk 0:02:44]} 9. h5 {[%clk 0:02:52]}  Bh7 {[%clk 0:02:44]} 10. Ngxe4 {[%clk 0:02:52]}  Nxe4 {[%clk 0:02:42]} 11. Nxe4 {[%clk 0:02:53]}  Bxe4 {[%clk 0:02:40]} 12. Qxe4 {[%clk 0:02:53]}  Nf6 {[%clk 0:02:39]} 13. Qe2 {[%clk 0:02:49]}  e6 {[%clk 0:02:38]} 14. O-O-O {[%clk 0:02:44]}  a5 {[%clk 0:02:35]} 15. a4 {[%clk 0:02:38]}  Be7 {[%clk 0:02:26]} 16. g4 {[%clk 0:02:38]}  Qd7 {[%clk 0:01:43]} 17. Bg2 {[%clk 0:02:26]}  Bd6 {[%clk 0:01:35]} 18. Kb1 {[%clk 0:02:23]}  O-O-O {[%clk 0:01:33]} 19. g5 {[%clk 0:01:58]}  Ne8 {[%clk 0:01:24]} 20. g6 {[%clk 0:01:51]}  f6 {[%clk 0:01:22]} 21. Bh3 {[%clk 0:01:50]}  Nc7 {[%clk 0:01:22]} 22. Qe3 {[%clk 0:01:42]}  Kb8 {[%clk 0:01:17]} 23. Qb6 {[%clk 0:01:36]}  Bb4 {[%clk 0:01:16]} 24. Rhe1 {[%clk 0:01:22]}  Rhe8 {[%clk 0:01:15]} 25. c3 {[%clk 0:01:16]}  Nd5 {[%clk 0:01:14]} 26. Qd4 {[%clk 0:01:11]}  Bd6 {[%clk 0:01:14]} 27. Qg4 {[%clk 0:00:52]}  Nf4 {[%clk 0:01:08]} 28. Bf1 {[%clk 0:00:49]}  Bc7 {[%clk 0:01:04]} 29. d4 {[%clk 0:00:47]}  Qd5 {[%clk 0:00:51]} 30. Bc4 {[%clk 0:00:44]}  Qg5 {[%clk 0:00:29]} 31. Qf3 {[%clk 0:00:26]}  e5 {[%clk 0:00:23]} 32. Bc1 {[%clk 0:00:19]}  Qxh5 {[%clk 0:00:18]} 33. Qxh5 {[%clk 0:00:18]}  Nxh5 {[%clk 0:00:18]} 34. dxe5 {[%clk 0:00:18]}  Bxe5 {[%clk 0:00:17]} 35. Rxd8+ {[%clk 0:00:18]}  Rxd8 {[%clk 0:00:17]} 36. Kc2 {[%clk 0:00:16]}  Kc7 {[%clk 0:00:14]} 37. Ba3 {[%clk 0:00:14]}  Nf4 {[%clk 0:00:13]} 38. b4 {[%clk 0:00:09]}  axb4 {[%clk 0:00:12]} 39. cxb4 {[%clk 0:00:10]}  Rd7 {[%clk 0:00:11]} 40. b5 {[%clk 0:00:10]}  Nxg6 {[%clk 0:00:10]} 41. Bc5 {[%clk 0:00:09]}  Bd4 {[%clk 0:00:07]} 42. b6+ {[%clk 0:00:09]}  Kd8 {[%clk 0:00:07]} 43. Bxd4 {[%clk 0:00:07]}  Rxd4 {[%clk 0:00:07]} 44. Bd3 {[%clk 0:00:08]}  Ne5 {[%clk 0:00:07]} 45. Be2 {[%clk 0:00:07]}  Rxa4 {[%clk 0:00:07]} 46. Rg1 {[%clk 0:00:06]}  g5 {[%clk 0:00:07]} 47. Rh1 {[%clk 0:00:07]}  Rb4 {[%clk 0:00:07]} 48. Rxh6 {[%clk 0:00:06]}  Nd7 {[%clk 0:00:07]} 49. Rh8+ {[%clk 0:00:05]}  Ke7 {[%clk 0:00:07]} 50. Rh7+ {[%clk 0:00:06]}  Kd6 {[%clk 0:00:08]} 51. Bg4 {[%clk 0:00:07]}  Nc5 {[%clk 0:00:08]} 52. Bc8 {[%clk 0:00:06]}  Rxb6 {[%clk 0:00:08]} 53. Rf7 {[%clk 0:00:05]}  Ke5 {[%clk 0:00:08]} 54. Re7+ {[%clk 0:00:06]}  Kf4 {[%clk 0:00:08]} 55. Rf7 {[%clk 0:00:06]}  Ne4 {[%clk 0:00:08]} 56. Bxb7 {[%clk 0:00:03]}  c5 {[%clk 0:00:06]} 57. Bxe4 {[%clk 0:00:02]}  Kxe4 {[%clk 0:00:06]} 58. Kc3 {[%clk 0:00:03]}  Kf3 {[%clk 0:00:06]} 59. Kc4 {[%clk 0:00:04]}  Kxf2 {[%clk 0:00:07]} 60. Kxc5 {[%clk 0:00:05]}  Ra6 {[%clk 0:00:07]} 61. Kd4 {[%clk 0:00:05]}  g4 {[%clk 0:00:07]} 62. Ke4 {[%clk 0:00:06]}  g3 {[%clk 0:00:07]} 63. Rb7 {[%clk 0:00:06]}  g2 {[%clk 0:00:07]} 64. Rb2+ {[%clk 0:00:07]}  Kg3 {[%clk 0:00:07]} 65. Rb3+ {[%clk 0:00:07]}  Kh2 {[%clk 0:00:08]} 66. Rb2 {[%clk 0:00:08]}  Ra3 {[%clk 0:00:07]} 67. Kf4 {[%clk 0:00:08]}  Ra4+ {[%clk 0:00:06]} 68. Kf3 {[%clk 0:00:08]}  Ra3+ {[%clk 0:00:07]} 69. Kg4 {[%clk 0:00:08]}  Ra1 {[%clk 0:00:06]} 70. Kf3 {[%clk 0:00:07]}  Rf1+ {[%clk 0:00:07]} 71. Kg4 {[%clk 0:00:08]}  Kh1 {[%clk 0:00:06]} 72. Rb1 {[%clk 0:00:05]}  Rxb1 {[%clk 0:00:06]} 73. Kh3 {[%clk 0:00:05]}  Rb3+ {[%clk 0:00:06]} 74. Kh4 {[%clk 0:00:02]}  g1=Q {[%clk 0:00:06]} 0-1


[Site "https://www.chess.com"]

[Event "Titled Tuesday Blitz June 13 Late 2023"]
[White "Prydun, Andriy"]
[Black "Gomez Ledo, Roberto Carlos"]
[WhiteFideId "14145898"]
[BlackFideId "3507076"]
[WhiteElo "2164"]
[BlackElo "2378"]
[Result "1/2-1/2"]
[Round "4"]
[TimeControl "180+2"]
[Date "2023.06.13"]
[WhiteClock "0:00:06"]
[BlackClock "0:00:11"]
[Board "74"]

1. e4 {[%clk 0:03:00]}  d6 {[%clk 0:02:59]} 2. d4 {[%clk 0:02:59]}  Nf6 {[%clk 0:02:59]} 3. Nc3 {[%clk 0:02:58]}  e5 {[%clk 0:03:00]} 4. Nge2 {[%clk 0:02:51]}  Be7 {[%clk 0:02:58]} 5. f3 {[%clk 0:02:51]}  h5 {[%clk 0:02:57]} 6. Be3 {[%clk 0:02:47]}  c6 {[%clk 0:02:57]} 7. Qd2 {[%clk 0:02:46]}  b5 {[%clk 0:02:57]} 8. a4 {[%clk 0:02:39]}  b4 {[%clk 0:02:52]} 9. Na2 {[%clk 0:02:39]}  a5 {[%clk 0:02:52]} 10. dxe5 {[%clk 0:02:37]}  dxe5 {[%clk 0:02:51]} 11. Qxd8+ {[%clk 0:02:37]}  Bxd8 {[%clk 0:02:51]} 12. Nac1 {[%clk 0:02:35]}  Nfd7 {[%clk 0:02:36]} 13. Nb3 {[%clk 0:02:32]}  Bb6 {[%clk 0:02:29]} 14. Kf2 {[%clk 0:02:15]}  Bxe3+ {[%clk 0:02:26]} 15. Kxe3 {[%clk 0:02:16]}  Nb6 {[%clk 0:02:27]} 16. Nec1 {[%clk 0:02:16]}  Be6 {[%clk 0:02:19]} 17. Nc5 {[%clk 0:02:14]}  Ke7 {[%clk 0:02:07]} 18. Be2 {[%clk 0:02:01]}  N8d7 {[%clk 0:02:06]} 19. Nxe6 {[%clk 0:01:56]}  Kxe6 {[%clk 0:02:03]} 20. Rd1 {[%clk 0:01:51]}  Nc5 {[%clk 0:02:01]} 21. b3 {[%clk 0:01:43]}  Rad8 {[%clk 0:01:56]} 22. Nd3 {[%clk 0:01:41]}  Nxd3 {[%clk 0:01:52]} 23. Bxd3 {[%clk 0:01:40]}  Rd4 {[%clk 0:01:45]} 24. Be2 {[%clk 0:01:35]}  Rhd8 {[%clk 0:01:39]} 25. Rxd4 {[%clk 0:01:33]}  Rxd4 {[%clk 0:01:38]} 26. Rc1 {[%clk 0:01:32]}  Kd6 {[%clk 0:01:20]} 27. h4 {[%clk 0:01:23]}  g6 {[%clk 0:01:18]} 28. g4 {[%clk 0:01:18]}  Nd7 {[%clk 0:00:51]} 29. gxh5 {[%clk 0:01:02]}  gxh5 {[%clk 0:00:52]} 30. Rg1 {[%clk 0:00:58]}  Nc5 {[%clk 0:00:41]} 31. Rg5 {[%clk 0:00:53]}  Ne6 {[%clk 0:00:38]} 32. Rxh5 {[%clk 0:00:52]}  Nf4 {[%clk 0:00:36]} 33. Rh6+ {[%clk 0:00:49]}  Kc5 {[%clk 0:00:32]} 34. Rf6 {[%clk 0:00:45]}  Ng2+ {[%clk 0:00:29]} 35. Kf2 {[%clk 0:00:45]}  Nxh4 {[%clk 0:00:29]} 36. Bd3 {[%clk 0:00:40]}  Ng6 {[%clk 0:00:27]} 37. Rxf7 {[%clk 0:00:38]}  Nf4 {[%clk 0:00:27]} 38. Ke3 {[%clk 0:00:38]}  Rd8 {[%clk 0:00:22]} 39. Rf5 {[%clk 0:00:31]}  Re8 {[%clk 0:00:18]} 40. Rf7 {[%clk 0:00:09]}  Rh8 {[%clk 0:00:13]} 41. Rf5 {[%clk 0:00:09]}  Re8 {[%clk 0:00:13]} 42. Rg5 {[%clk 0:00:08]}  Kd6 {[%clk 0:00:11]} 43. Rf5 {[%clk 0:00:06]}  Rh8 {[%clk 0:00:11]} 44. Rf6+ {[%clk 0:00:05]}  Kc5 {[%clk 0:00:10]} 45. Rf5 {[%clk 0:00:05]}  Kd6 {[%clk 0:00:11]} 46. Rf6+ {[%clk 0:00:06]}  Kc5 {[%clk 0:00:11]} 47. Rf5 {[%clk 0:00:06]} 1/2-1/2


[Site "https://www.chess.com"]

[Event "Titled Tuesday Blitz June 13 Late 2023"]
[White "Rodriguez, Santiago"]
[Black "Spata, German"]
[WhiteFideId "3000591"]
[BlackFideId "113026"]
[WhiteElo "2249"]
[BlackElo "2260"]
[Result "1-0"]
[Round "4"]
[TimeControl "180+2"]
[Date "2023.06.13"]
[WhiteClock "0:00:03"]
[BlackClock "0:00:00"]
[Board "75"]

1. d4 {[%clk 0:02:44]}  d5 {[%clk 0:02:58]} 2. Nc3 {[%clk 0:02:42]}  e6 {[%clk 0:02:57]} 3. Bf4 {[%clk 0:02:39]}  Bd6 {[%clk 0:02:56]} 4. e3 {[%clk 0:02:39]}  a6 {[%clk 0:02:56]} 5. Nf3 {[%clk 0:02:39]}  Nf6 {[%clk 0:02:54]} 6. Bd3 {[%clk 0:02:39]}  O-O {[%clk 0:02:40]} 7. Ne5 {[%clk 0:02:31]}  c5 {[%clk 0:02:40]} 8. dxc5 {[%clk 0:02:24]}  Bxc5 {[%clk 0:02:38]} 9. Qf3 {[%clk 0:02:23]}  Nc6 {[%clk 0:02:34]} 10. O-O-O {[%clk 0:02:00]}  Bd6 {[%clk 0:02:19]} 11. Nxc6 {[%clk 0:01:51]}  bxc6 {[%clk 0:02:20]} 12. Bxd6 {[%clk 0:01:47]}  Qxd6 {[%clk 0:02:20]} 13. e4 {[%clk 0:01:44]}  Rb8 {[%clk 0:02:13]} 14. Qg3 {[%clk 0:01:43]}  Qb4 {[%clk 0:02:05]} 15. b3 {[%clk 0:01:38]}  Bd7 {[%clk 0:01:21]} 16. e5 {[%clk 0:01:31]}  Nh5 {[%clk 0:01:14]} 17. Qf3 {[%clk 0:01:18]}  Qf4+ {[%clk 0:00:59]} 18. Qxf4 {[%clk 0:01:16]}  Nxf4 {[%clk 0:00:59]} 19. g3 {[%clk 0:01:14]}  Nxd3+ {[%clk 0:00:57]} 20. Rxd3 {[%clk 0:01:15]}  c5 {[%clk 0:00:57]} 21. f4 {[%clk 0:01:05]}  Bb5 {[%clk 0:00:51]} 22. Rd2 {[%clk 0:00:59]}  g6 {[%clk 0:00:49]} 23. h4 {[%clk 0:00:58]}  h5 {[%clk 0:00:48]} 24. Re1 {[%clk 0:00:56]}  Bc6 {[%clk 0:00:45]} 25. Kb2 {[%clk 0:00:50]}  a5 {[%clk 0:00:45]} 26. Rd3 {[%clk 0:00:39]}  Rb4 {[%clk 0:00:45]} 27. Nd1 {[%clk 0:00:27]}  Rfb8 {[%clk 0:00:36]} 28. Rc3 {[%clk 0:00:26]}  c4 {[%clk 0:00:34]} 29. Ne3 {[%clk 0:00:18]}  a4 {[%clk 0:00:23]} 30. Rd1 {[%clk 0:00:16]}  Be8 {[%clk 0:00:18]} 31. Rd4 {[%clk 0:00:15]}  Kf8 {[%clk 0:00:14]} 32. a3 {[%clk 0:00:15]}  R4b7 {[%clk 0:00:10]} 33. b4 {[%clk 0:00:15]}  Bb5 {[%clk 0:00:09]} 34. Ng2 {[%clk 0:00:14]}  Ke7 {[%clk 0:00:09]} 35. Ne1 {[%clk 0:00:15]}  Rc7 {[%clk 0:00:09]} 36. Nf3 {[%clk 0:00:15]}  Rcb7 {[%clk 0:00:09]} 37. Re3 {[%clk 0:00:15]}  Rc8 {[%clk 0:00:09]} 38. Kc3 {[%clk 0:00:15]}  Rcb8 {[%clk 0:00:09]} 39. Rd1 {[%clk 0:00:15]}  Rc8 {[%clk 0:00:10]} 40. Nd4 {[%clk 0:00:16]}  Rcb8 {[%clk 0:00:10]} 41. Rg1 {[%clk 0:00:16]}  Rh8 {[%clk 0:00:08]} 42. Rge1 {[%clk 0:00:16]}  Bd7 {[%clk 0:00:08]} 43. R3e2 {[%clk 0:00:15]}  Rbb8 {[%clk 0:00:08]} 44. Rf2 {[%clk 0:00:15]}  Rb7 {[%clk 0:00:08]} 45. Rh1 {[%clk 0:00:15]}  Bb5 {[%clk 0:00:08]} 46. Rg2 {[%clk 0:00:15]}  Bd7 {[%clk 0:00:08]} 47. Rf2 {[%clk 0:00:14]}  Bb5 {[%clk 0:00:07]} 48. Ne2 {[%clk 0:00:14]}  Bd7 {[%clk 0:00:07]} 49. Kd4 {[%clk 0:00:14]}  Rc8 {[%clk 0:00:06]} 50. Nc3 {[%clk 0:00:14]}  Bb5 {[%clk 0:00:06]} 51. Rg2 {[%clk 0:00:14]}  Bd7 {[%clk 0:00:05]} 52. Rf2 {[%clk 0:00:14]}  Bb5 {[%clk 0:00:05]} 53. Re1 {[%clk 0:00:13]}  Bd7 {[%clk 0:00:05]} 54. Nb1 {[%clk 0:00:13]}  c3 {[%clk 0:00:03]} 55. Re3 {[%clk 0:00:05]}  Rc4+ {[%clk 0:00:03]} 56. Kd3 {[%clk 0:00:05]}  Bb5 {[%clk 0:00:00]} 57. Nxc3 {[%clk 0:00:03]} 1-0


[Site "https://www.chess.com"]

[Event "Titled Tuesday Blitz June 13 Late 2023"]
[White "FuenfgegenWilly"]
[Black "ArtemDyachuk"]
[WhiteElo "2401"]
[BlackElo "2633"]
[Result "1-0"]
[Round "4"]
[TimeControl "180+2"]
[Date "2023.06.13"]
[WhiteClock "0:00:46"]
[BlackClock "0:00:00"]
[Board "76"]

1. d4 {[%clk 0:03:00]}  d5 {[%clk 0:02:59]} 2. c4 {[%clk 0:03:00]}  c6 {[%clk 0:02:59]} 3. Nf3 {[%clk 0:02:59]}  Nf6 {[%clk 0:02:59]} 4. e3 {[%clk 0:02:58]}  e6 {[%clk 0:02:58]} 5. Nc3 {[%clk 0:02:58]}  Bd6 {[%clk 0:02:57]} 6. Be2 {[%clk 0:02:51]}  dxc4 {[%clk 0:02:53]} 7. Bxc4 {[%clk 0:02:50]}  b5 {[%clk 0:02:51]} 8. Bd3 {[%clk 0:02:47]}  Nbd7 {[%clk 0:02:50]} 9. e4 {[%clk 0:02:44]}  e5 {[%clk 0:02:48]} 10. d5 {[%clk 0:02:33]}  cxd5 {[%clk 0:02:44]} 11. Nxd5 {[%clk 0:02:25]}  Nxd5 {[%clk 0:02:42]} 12. exd5 {[%clk 0:02:26]}  O-O {[%clk 0:02:41]} 13. O-O {[%clk 0:02:21]}  Rb8 {[%clk 0:02:32]} 14. Re1 {[%clk 0:02:04]}  a6 {[%clk 0:02:25]} 15. Bd2 {[%clk 0:01:52]}  Nc5 {[%clk 0:02:20]} 16. Bc2 {[%clk 0:01:52]}  Bg4 {[%clk 0:02:16]} 17. h3 {[%clk 0:01:52]}  Bh5 {[%clk 0:02:14]} 18. g4 {[%clk 0:01:46]}  Bg6 {[%clk 0:02:14]} 19. Nxe5 {[%clk 0:01:38]}  Bxe5 {[%clk 0:01:50]} 20. Rxe5 {[%clk 0:01:39]}  Bxc2 {[%clk 0:01:31]} 21. Qxc2 {[%clk 0:01:39]}  Rc8 {[%clk 0:01:31]} 22. Qf5 {[%clk 0:01:34]}  g6 {[%clk 0:01:24]} 23. Qf3 {[%clk 0:01:33]}  Nd7 {[%clk 0:01:10]} 24. Re2 {[%clk 0:01:28]}  Nb6 {[%clk 0:01:04]} 25. Bh6 {[%clk 0:01:15]}  Nc4 {[%clk 0:00:42]} 26. Bxf8 {[%clk 0:01:06]}  Qxf8 {[%clk 0:00:43]} 27. b3 {[%clk 0:01:07]}  Nd6 {[%clk 0:00:43]} 28. Rae1 {[%clk 0:01:06]}  b4 {[%clk 0:00:35]} 29. Re7 {[%clk 0:01:05]}  Rc5 {[%clk 0:00:24]} 30. Rd7 {[%clk 0:01:01]}  Nc8 {[%clk 0:00:17]} 31. Qf6 {[%clk 0:00:55]}  Rc3 {[%clk 0:00:04]} 32. Rd8 {[%clk 0:00:54]}  Qxd8 {[%clk 0:00:02]} 33. Qxd8+ {[%clk 0:00:55]}  Kg7 {[%clk 0:00:03]} 34. Re8 {[%clk 0:00:50]}  Kh6 {[%clk 0:00:02]} 35. Qxc8 {[%clk 0:00:50]}  Rd3 {[%clk 0:00:01]} 36. Re5 {[%clk 0:00:46]}  Rd1+ {[%clk 0:00:01]} 37. Kg2 {[%clk 0:00:46]}  Kg7 {[%clk 0:00:00]} 38. Qf8+ {[%clk 0:00:46]} 1-0


[Site "https://www.chess.com"]

[Event "Titled Tuesday Blitz June 13 Late 2023"]
[White "Adury, Anant"]
[Black "Chernobay, Artem"]
[WhiteFideId "30964687"]
[BlackFideId "4167406"]
[WhiteElo "2348"]
[BlackElo "2474"]
[Result "1/2-1/2"]
[Round "4"]
[TimeControl "180+2"]
[Date "2023.06.13"]
[WhiteClock "0:00:06"]
[BlackClock "0:00:01"]
[Board "79"]

1. Nf3 {[%clk 0:03:00]}  Nf6 {[%clk 0:02:59]} 2. g3 {[%clk 0:02:55]}  g6 {[%clk 0:02:59]} 3. Bg2 {[%clk 0:02:56]}  Bg7 {[%clk 0:03:00]} 4. b3 {[%clk 0:02:56]}  O-O {[%clk 0:03:00]} 5. Bb2 {[%clk 0:02:57]}  d6 {[%clk 0:02:59]} 6. d4 {[%clk 0:02:56]}  Nbd7 {[%clk 0:02:49]} 7. O-O {[%clk 0:02:55]}  e5 {[%clk 0:02:49]} 8. dxe5 {[%clk 0:02:54]}  dxe5 {[%clk 0:02:49]} 9. Nxe5 {[%clk 0:02:52]}  Ng4 {[%clk 0:02:06]} 10. Nd3 {[%clk 0:02:44]}  Bxb2 {[%clk 0:01:43]} 11. Nxb2 {[%clk 0:02:45]}  Qf6 {[%clk 0:01:42]} 12. Qc1 {[%clk 0:02:45]}  Re8 {[%clk 0:01:34]} 13. e3 {[%clk 0:02:37]}  Nde5 {[%clk 0:01:34]} 14. Nd2 {[%clk 0:02:36]}  Qf5 {[%clk 0:01:24]} 15. h3 {[%clk 0:02:23]}  Nf6 {[%clk 0:01:22]} 16. Nbc4 {[%clk 0:02:21]}  Nxc4 {[%clk 0:01:13]} 17. Nxc4 {[%clk 0:02:21]}  Qh5 {[%clk 0:01:12]} 18. Qb2 {[%clk 0:02:10]}  Qg5 {[%clk 0:00:47]} 19. h4 {[%clk 0:02:04]}  Qf5 {[%clk 0:00:44]} 20. Rad1 {[%clk 0:01:42]}  Rb8 {[%clk 0:00:45]} 21. a4 {[%clk 0:01:41]}  Be6 {[%clk 0:00:44]} 22. Qc3 {[%clk 0:01:39]}  a6 {[%clk 0:00:34]} 23. Qe5 {[%clk 0:01:31]}  Bxc4 {[%clk 0:00:29]} 24. Qxf5 {[%clk 0:01:31]}  gxf5 {[%clk 0:00:29]} 25. bxc4 {[%clk 0:01:31]}  Re5 {[%clk 0:00:29]} 26. Rb1 {[%clk 0:01:28]}  b6 {[%clk 0:00:29]} 27. Rfd1 {[%clk 0:01:22]}  Kf8 {[%clk 0:00:28]} 28. Rd4 {[%clk 0:01:21]}  Ke7 {[%clk 0:00:28]} 29. Bf1 {[%clk 0:01:20]}  Ra5 {[%clk 0:00:27]} 30. Bd3 {[%clk 0:01:12]}  Ke6 {[%clk 0:00:22]} 31. Rf4 {[%clk 0:01:11]}  Nh5 {[%clk 0:00:21]} 32. Rd4 {[%clk 0:00:58]}  Nf6 {[%clk 0:00:21]} 33. Ra1 {[%clk 0:00:48]}  Re8 {[%clk 0:00:20]} 34. Kg2 {[%clk 0:00:44]}  Re7 {[%clk 0:00:20]} 35. Kf3 {[%clk 0:00:42]}  Re8 {[%clk 0:00:19]} 36. Rf4 {[%clk 0:00:42]}  Re5 {[%clk 0:00:17]} 37. Kg2 {[%clk 0:00:39]}  a5 {[%clk 0:00:14]} 38. Rb1 {[%clk 0:00:38]}  Rd8 {[%clk 0:00:13]} 39. Rb5 {[%clk 0:00:37]}  Rxb5 {[%clk 0:00:06]} 40. cxb5 {[%clk 0:00:38]}  Nd5 {[%clk 0:00:04]} 41. Rd4 {[%clk 0:00:20]}  Ke5 {[%clk 0:00:03]} 42. Bc4 {[%clk 0:00:20]}  f6 {[%clk 0:00:03]} 43. Kf3 {[%clk 0:00:18]}  Rd6 {[%clk 0:00:03]} 44. Bxd5 {[%clk 0:00:15]}  Rxd5 {[%clk 0:00:04]} 45. Rc4 {[%clk 0:00:15]}  Rd7 {[%clk 0:00:03]} 46. Rc6 {[%clk 0:00:14]}  Re7 {[%clk 0:00:02]} 47. c4 {[%clk 0:00:15]}  Rd7 {[%clk 0:00:02]} 48. c5 {[%clk 0:00:15]}  bxc5 {[%clk 0:00:02]} 49. Rxc5+ {[%clk 0:00:16]}  Ke6 {[%clk 0:00:03]} 50. Rc6+ {[%clk 0:00:17]}  Ke7 {[%clk 0:00:03]} 51. Ra6 {[%clk 0:00:17]}  Rd2 {[%clk 0:00:02]} 52. Rxa5 {[%clk 0:00:18]}  Ra2 {[%clk 0:00:03]} 53. Ra7 {[%clk 0:00:18]}  Kd6 {[%clk 0:00:03]} 54. Ra6+ {[%clk 0:00:19]}  Ke5 {[%clk 0:00:03]} 55. Rc6 {[%clk 0:00:19]}  Rxa4 {[%clk 0:00:03]} 56. Rxc7 {[%clk 0:00:19]}  Rb4 {[%clk 0:00:04]} 57. Rxh7 {[%clk 0:00:20]}  Rxb5 {[%clk 0:00:04]} 58. Rh5 {[%clk 0:00:19]}  Ke6 {[%clk 0:00:04]} 59. Rh8 {[%clk 0:00:18]}  Kf7 {[%clk 0:00:05]} 60. Rd8 {[%clk 0:00:18]}  Kg6 {[%clk 0:00:05]} 61. Rd4 {[%clk 0:00:19]}  Rb2 {[%clk 0:00:04]} 62. Kg2 {[%clk 0:00:19]}  Ra2 {[%clk 0:00:04]} 63. e4 {[%clk 0:00:16]}  fxe4 {[%clk 0:00:04]} 64. Rxe4 {[%clk 0:00:17]}  Rb2 {[%clk 0:00:04]} 65. Rf4 {[%clk 0:00:16]}  Ra2 {[%clk 0:00:04]} 66. Kf3 {[%clk 0:00:17]}  Ra3+ {[%clk 0:00:05]} 67. Kg4 {[%clk 0:00:17]}  Ra2 {[%clk 0:00:05]} 68. h5+ {[%clk 0:00:16]}  Kg7 {[%clk 0:00:05]} 69. f3 {[%clk 0:00:15]}  Ra5 {[%clk 0:00:05]} 70. Kh4 {[%clk 0:00:15]}  Ra1 {[%clk 0:00:05]} 71. g4 {[%clk 0:00:15]}  Ra3 {[%clk 0:00:04]} 72. Kg3 {[%clk 0:00:15]}  Ra6 {[%clk 0:00:05]} 73. Rb4 {[%clk 0:00:15]}  Kh6 {[%clk 0:00:05]} 74. f4 {[%clk 0:00:15]}  f5 {[%clk 0:00:03]} 75. Rb5 {[%clk 0:00:06]}  fxg4 {[%clk 0:00:03]} 76. Kxg4 {[%clk 0:00:07]}  Ra1 {[%clk 0:00:03]} 77. Rb6+ {[%clk 0:00:07]}  Kg7 {[%clk 0:00:03]} 78. h6+ {[%clk 0:00:08]}  Kh7 {[%clk 0:00:03]} 79. Kf5 {[%clk 0:00:08]}  Ra5+ {[%clk 0:00:02]} 80. Kf6 {[%clk 0:00:08]}  Kxh6 {[%clk 0:00:02]} 81. f5 {[%clk 0:00:09]}  Kh7 {[%clk 0:00:03]} 82. Re6 {[%clk 0:00:09]}  Kg8 {[%clk 0:00:02]} 83. Re8+ {[%clk 0:00:08]}  Kh7 {[%clk 0:00:03]} 84. Ke6 {[%clk 0:00:07]}  Ra6+ {[%clk 0:00:01]} 85. Kf7 {[%clk 0:00:07]}  Kh6 {[%clk 0:00:02]} 86. f6 {[%clk 0:00:07]}  Kh7 {[%clk 0:00:02]} 87. Re7 {[%clk 0:00:07]}  Kh6 {[%clk 0:00:01]} 88. Kf8 {[%clk 0:00:05]}  Kg6 {[%clk 0:00:01]} 89. f7 {[%clk 0:00:04]}  Ra8+ {[%clk 0:00:01]} 90. Re8 {[%clk 0:00:04]}  Ra7 {[%clk 0:00:02]} 91. Re7 {[%clk 0:00:02]}  Ra8+ {[%clk 0:00:02]} 92. Re8 {[%clk 0:00:03]}  Ra7 {[%clk 0:00:02]} 93. Kg8 {[%clk 0:00:04]}  Rxf7 {[%clk 0:00:02]} 94. Re6+ {[%clk 0:00:05]}  Rf6 {[%clk 0:00:02]} 95. Re8 {[%clk 0:00:06]}  Rb6 {[%clk 0:00:02]} 96. Rf8 {[%clk 0:00:06]}  Kg5 {[%clk 0:00:01]} 97. Rf7 {[%clk 0:00:06]} 1/2-1/2


[Site "https://www.chess.com"]